bitfinex-derivatives/quotes_ETHF0:USTF0_20250518
["timestamp","ask_amount","ask_price","bid_price","bid_amount"]
[1747595584156,4.01984,2462.2,2462.0,19.23643871]
[1747595584359,4.01984,2462.2,2462.1,15.26855871]
[1747595585161,0.81204,2462.2,2462.1,15.26855871]
[1747595585461,0.81204,2462.2,2462.1,0.12694462]
[1747595585661,5.93224,2462.2,2462.1,0.12694462]
[1747595586857,0.81212,2461.9,2461.8,2.02058003]
[1747595587061,0.81212,2461.9,2461.8,15.45854238]
[1747595587257,0.81212,2461.9,2461.8,18.51654238]
[1747595588559,0.81212,2461.9,2461.8,16.58814238]
[1747595588758,5.90632,2461.9,2461.8,3.2771336]
[1747595589154,5.90632,2461.9,2461.8,0.2191336]
[1747595589359,0.81228,2461.4,2461.3,11.1542]
[1747595589655,0.81238,2461.1,2461.0,0.30022392]
[1747595589957,13.22218,2461.1,2461.0,0.30022392]
[1747595590658,12.4088,2461.1,2460.8,1.7468]
[1747595590863,0.81241,2461.0,2460.9,13.31101409]
[1747595591051,0.81245,2460.9,2460.8,1.7468]
[1747595591257,0.81245,2460.9,2460.8,4.8048]
[1747595591454,0.81245,2460.9,2460.8,18.11581409]
[1747595591962,0.81245,2460.9,2460.8,16.36901409]
[1747595592462,5.81245,2460.9,2460.8,3.058]
[1747595593163,0.81245,2460.9,2460.8,16.36901409]
[1747595593461,0.81245,2460.9,2460.8,25.60801409]
[1747595593656,0.81244,2460.9,2460.8,25.60801409]
[1747595593859,0.81243,2461.0,2460.8,25.60801409]
[1747595594160,3.2078,2461.1,2461.0,13.31101409]
[1747595594358,3.20279479,2461.2,2461.1,0.81238]
[1747595594664,3.20279479,2461.2,2461.1,15.97169409]
[1747595594863,3.20279479,2461.2,2461.1,15.15931409]
[1747595595057,3.20279479,2461.2,2461.1,15.97169409]
[1747595595361,3.20279479,2461.2,2461.1,15.15931409]
[1747595595763,4.01514479,2461.2,2461.1,15.15931409]
[1747595595966,3.20279479,2461.2,2461.1,20.97169409]
[1747595596463,3.20279479,2461.2,2461.1,21.28122383]
[1747595597552,0.81228,2461.4,2461.3,0.81231]
[1747595597752,1.0038861,2461.5,2461.4,0.81228]
[1747595597955,1.0038861,2461.5,2461.4,17.76179409]
[1747595598163,1.8161361,2461.5,2461.4,21.87791409]
[1747595598565,1.8161361,2461.5,2461.4,22.69019409]
[1747595598859,1.8161361,2461.5,2461.4,8.5669]
[1747595599271,1.8161361,2461.5,2461.4,21.87791409]
[1747595600667,0.81223,2461.6,2461.4,22.69018409]
[1747595600864,3.2078,2461.7,2461.5,13.31101409]
[1747595601062,3.2078,2461.7,2461.6,15.13881409]
[1747595601565,3.2078,2461.7,2461.6,15.95102409]
[1747595602162,0.81217,2461.8,2461.6,15.95102409]
[1747595602466,0.81217,2461.8,2461.7,24.36431409]
[1747595602666,3.20718557,2462.0,2461.7,24.36431409]
[1747595602869,3.20718557,2462.0,2461.9,13.31101409]
[1747595603066,5.02838557,2462.0,2461.9,13.31101409]
[1747595603270,5.02838557,2462.0,2461.9,16.36901409]
[1747595604369,2.6333,2462.0,2461.9,16.36901409]
[1747595604571,2.6333,2462.0,2461.9,3.058]
[1747595606375,5.8411,2462.0,2461.9,3.058]
[1747595606576,0.81232,2461.3,2461.0,4.02019]
[1747595606763,0.81232,2461.3,2461.2,10.9763]
[1747595606969,0.81232,2461.3,2461.2,22.50801409]
[1747595607168,0.81232,2461.3,2461.2,9.197]
[1747595607763,3.6886,2461.4,2461.2,13.31101409]
[1747595607969,2.66325,2461.5,2461.4,13.31101409]
[1747595608371,2.68014,2461.6,2461.4,15.19481409]
[1747595608670,0.8122,2461.7,2461.5,13.31101409]
[1747595608867,0.81221,2461.6,2461.5,3.8382]
[1747595609269,0.81221,2461.6,2461.5,20.20721409]
[1747595609473,0.81221,2461.6,2461.5,16.36901409]
[1747595609673,0.81221,2461.6,2461.5,3.058]
[1747595609979,2.63291,2461.6,2461.5,12.255]
[1747595611679,2.63291,2461.6,2461.5,25.56601409]
[1747595612573,1.8207,2461.6,2461.5,26.37826409]
[1747595612777,2.6801,2461.7,2461.5,25.56601409]
[1747595612978,0.8122,2461.7,2461.6,13.31101409]
[1747595614281,2.6772,2461.7,2461.6,13.31101409]
[1747595614478,5.60288557,2461.9,2461.6,14.12320409]
[1747595614670,6.41500557,2461.9,2461.8,13.31101409]
[1747595615172,6.41500557,2461.9,2461.8,16.36901409]
[1747595615576,3.20720557,2461.9,2461.8,16.36901409]
[1747595615881,0.81212,2461.9,2461.8,16.36901409]
[1747595616076,0.81212,2461.9,2461.8,12.255]
[1747595616574,4.01992,2461.9,2461.8,3.058]
[1747595617278,4.01992,2461.9,2461.8,16.36901409]
[1747595617677,4.01992,2461.9,2461.8,18.19251409]
[1747595619672,0.81212,2461.9,2461.8,18.19251409]
[1747595620578,1.865,2462.1,2461.8,18.19251409]
[1747595620785,2.39508557,2462.2,2462.0,13.31101409]
[1747595620984,2.39508557,2462.2,2461.8,4.8815]
[1747595620985,2.39508557,2462.2,2462.1,25.14496409]
[1747595623080,0.81198,2462.3,2462.1,25.14496409]
[1747595623282,0.81198,2462.3,2462.2,15.22621409]
[1747595624773,2.67788,2462.3,2462.2,15.22621409]
[1747595625181,0.81198,2462.3,2462.2,15.22621409]
[1747595625384,19.53827167,2462.6,2462.2,15.22621409]
[1747595625385,0.81195,2462.4,2462.2,16.03820409]
[1747595625583,0.81195,2462.4,2462.3,1.9152]
[1747595625883,0.81195,2462.4,2462.3,15.22621409]
[1747595626073,0.81195,2462.4,2462.3,18.28421409]
[1747595626682,10.37627167,2462.6,2462.3,18.28421409]
[1747595626979,10.37627167,2462.6,2462.5,14.12293409]
[1747595626980,6.60677167,2462.6,2462.5,14.12293409]
[1747595627181,3.39897167,2462.6,2462.5,26.33693409]
[1747595627477,3.39897167,2462.6,2462.5,31.64719389]
[1747595627780,3.20279479,2462.9,2462.8,0.81182]
[1747595627970,0.14429994,2462.9,2462.8,17.64086685]
[1747595628175,5.72108017,2463.1,2463.0,0.81175]
[1747595628373,5.72108017,2463.1,2463.0,32.59669691]
[1747595628576,5.72108017,2463.1,2463.0,41.90504192]
[1747595628774,5.72108017,2463.1,2463.0,45.44604192]
[1747595629180,5.72108017,2463.1,2463.0,48.50404192]
[1747595629780,5.72108017,2463.1,2463.0,30.19604192]
[1747595630080,5.72108017,2463.1,2463.0,29.22994691]
[1747595630280,6.53280017,2463.1,2463.0,28.91971415]
[1747595630481,5.72108017,2463.1,2463.0,29.01189418]
[1747595630681,6.53280017,2463.1,2463.0,29.01189418]
[1747595630977,2.49868306,2463.1,2463.0,29.01189418]
[1747595631180,2.49868306,2463.1,2463.0,19.85789418]
[1747595631380,0.81172,2463.1,2463.0,27.26669418]
[1747595633876,0.81171,2463.2,2463.0,27.26669418]
[1747595634081,0.81171,2463.2,2463.1,13.16671415]
[1747595634476,0.81172,2463.1,2463.0,14.09998003]
[1747595634784,0.81172,2463.1,2463.0,14.09898003]
[1747595635081,0.81172,2463.1,2463.0,27.26569418]
[1747595636589,0.81172,2463.1,2463.0,18.11269418]
[1747595636781,0.81172,2463.1,2463.0,27.26469418]
[1747595639687,6.8331,2463.4,2463.0,18.11269418]
[1747595639989,0.81169,2463.2,2463.1,22.31871415]
[1747595640188,6.8331,2463.4,2463.2,13.16671415]
[1747595640488,5.80272,2463.4,2463.3,24.15671415]
[1747595640886,5.80272,2463.4,2463.3,10.99]
[1747595641081,5.80272,2463.4,2463.3,9.152]
[1747595641289,0.81172,2463.1,2463.0,1.88228003]
[1747595641488,0.81171,2463.2,2463.0,11.03428003]
[1747595641683,0.81172,2463.1,2463.0,11.03428003]
[1747595642185,0.81172,2463.1,2463.0,27.25899418]
[1747595644492,0.81172,2463.1,2463.0,28.07074418]
[1747595644699,0.81172,2463.1,2463.0,27.97856415]
[1747595645188,0.81172,2463.1,2463.0,31.18636415]
[1747595645389,0.81172,2463.1,2463.0,27.97856415]
[1747595645996,0.81162,2463.5,2463.4,0.81162]
[1747595646194,5.7391,2463.8,2463.4,25.37671415]
[1747595646489,0.81152,2463.7,2463.6,4.01933]
[1747595646691,5.7391,2464.2,2463.7,0.81151]
[1747595646895,0.81142,2464.0,2463.9,13.16671415]
[1747595647097,0.81142,2464.0,2463.9,14.96691415]
[1747595647291,0.90358003,2464.1,2463.9,24.90136415]
[1747595647491,0.09218003,2464.1,2464.0,13.97813415]
[1747595647690,0.09218003,2464.1,2464.0,15.81983415]
[1747595647885,3.86937,2464.2,2464.0,17.73113415]
[1747595648095,0.81137,2464.2,2464.1,13.16671415]
[1747595648397,0.81135,2464.3,2464.1,13.97810415]
[1747595648598,0.81135,2464.3,2464.2,24.15941415]
[1747595648984,2.71849003,2464.4,2464.2,24.15941415]
[1747595649191,0.09218003,2464.4,2464.3,15.81973415]
[1747595649602,0.09218003,2464.4,2464.3,29.93973415]
[1747595649805,0.66508984,2464.5,2464.4,0.81129]
[1747595650001,0.66508984,2464.5,2464.4,15.81970415]
[1747595652204,3.6283,2465.0,2464.4,15.81969415]
[1747595652505,0.81116,2464.8,2464.7,13.16671415]
[1747595653108,3.058,2464.8,2464.7,9.15]
[1747595653506,3.86916,2464.8,2464.7,9.15]
[1747595656406,3.86916,2464.8,2464.7,23.12790415]
[1747595656407,3.058,2464.8,2464.7,23.12790415]
[1747595657212,0.81114,2464.9,2464.8,0.81116]
[1747595657411,3.6283,2465.0,2464.8,15.00211415]
[1747595657603,1.7624,2465.2,2464.9,13.16671415]
[1747595657912,0.81106,2465.1,2465.0,15.00211415]
[1747595658206,0.81106,2465.1,2465.0,11.75449]
[1747595658409,1.764,2465.3,2465.0,24.11011415]
[1747595658609,0.81103,2465.2,2465.1,13.16671415]
[1747595659105,3.86903,2465.2,2465.1,13.16671415]
[1747595659312,3.058,2465.2,2465.1,13.97777415]
[1747595659516,3.058,2465.2,2465.1,17.18557415]
[1747595659706,3.058,2465.2,2465.1,23.92857415]
[1747595660107,0.09218003,2465.2,2465.1,23.92857415]
[1747595660307,0.09218003,2465.2,2465.1,42.13757415]
[1747595660514,0.09218003,2465.2,2465.1,23.92857415]
[1747595660814,5.20659548,2466.3,2465.1,23.92857415]
[1747595660815,5.20659548,2466.3,2465.7,0.81085]
[1747595661016,0.81076,2466.0,2465.9,13.16671415]
[1747595661210,0.81076,2466.0,2465.9,24.07141415]
[1747595661511,0.81076,2466.0,2465.9,9.107]
[1747595662313,3.86876,2466.0,2465.9,9.107]
[1747595662909,3.86877,2466.0,2465.9,9.105]
[1747595663312,5.71737,2466.0,2465.9,9.105]
[1747595663614,6.93354,2466.0,2465.3,1.8675]
[1747595663815,0.8109,2465.6,2465.5,13.16671415]
[1747595664311,0.811,2465.3,2465.1,4.65019101]
[1747595664506,0.81096,2465.4,2465.3,13.16671415]
[1747595664706,0.81103,2465.2,2465.1,2.98619101]
[1747595664913,0.81103,2465.2,2465.1,10.22369101]
[1747595665216,3.96121003,2465.2,2465.1,23.39040516]
[1747595665415,7.63321003,2465.2,2465.1,23.39040516]
[1747595665615,7.63321003,2465.2,2465.1,13.16671415]
[1747595665916,0.81109,2465.0,2464.9,1.8675]
[1747595666106,2.66347,2465.1,2465.0,13.16671415]
[1747595666506,2.66347,2465.1,2464.9,10.9725]
[1747595666710,2.66347,2465.1,2465.0,13.16671415]
[1747595666912,0.81109,2465.0,2464.9,22.27171415]
[1747595667110,0.81109,2465.0,2464.9,9.105]
[1747595667111,2.66349,2465.0,2464.9,9.105]
[1747595667319,1.8524,2465.0,2464.9,9.105]
[1747595667517,1.8524,2465.0,2464.9,24.81094415]
[1747595667721,3.058,2465.1,2465.0,0.81109]
[1747595667922,3.058,2465.1,2465.0,15.70590415]
[1747595668119,3.29998003,2465.2,2465.1,0.81106]
[1747595668326,3.29998003,2465.2,2465.1,13.16671415]
[1747595668620,0.09218003,2465.2,2465.1,17.18557415]
[1747595669122,3.96121003,2465.2,2465.1,17.18557415]
[1747595669430,3.15018003,2465.2,2465.1,17.18557415]
[1747595669922,3.15018003,2465.2,2465.1,28.01677415]
[1747595670111,0.81093,2465.6,2465.5,0.81093]
[1747595670316,0.81089,2465.7,2465.6,13.16671415]
[1747595670518,4.01865,2465.8,2465.6,13.16671415]
[1747595670718,4.01863,2465.8,2465.7,13.16671415]
[1747595671318,3.86883,2465.8,2465.7,13.16671415]
[1747595672617,3.058,2465.8,2465.5,19.00292]
[1747595672824,0.81089,2465.7,2465.6,13.16671415]
[1747595673024,2.70319,2465.7,2465.6,13.97761415]
[1747595673326,3.86886,2465.7,2465.6,13.97761415]
[1747595673526,3.86886,2465.7,2465.6,22.27071415]
[1747595674120,3.96104003,2465.7,2465.6,22.27071415]
[1747595674425,3.96104003,2465.7,2465.6,23.08161415]
[1747595674719,3.15018003,2465.7,2465.6,23.08061415]
[1747595675223,3.15018003,2465.7,2465.6,24.79451415]
[1747595676124,0.09218003,2465.7,2465.6,24.79451415]
[1747595676628,0.09218003,2465.7,2465.6,25.10486646]
[1747595677628,0.09218003,2465.7,2465.6,25.10486745]
[1747595679423,0.09218003,2465.7,2465.6,26.22890616]
[1747595681533,0.09218003,2465.7,2465.6,26.22889333]
[1747595682128,3.15018003,2465.7,2465.6,35.29889333]
[1747595683321,3.15018003,2465.7,2465.6,35.29888923]
[1747595684031,3.15018003,2465.7,2465.6,26.22788923]
[1747595684228,3.15018003,2465.7,2465.6,35.29588923]
[1747595684426,3.96104003,2465.7,2465.6,33.58098923]
[1747595684925,3.96104003,2465.7,2465.6,23.70308923]
[1747595685131,3.96104003,2465.7,2465.6,10.22603871]
[1747595685341,3.96104003,2465.7,2465.6,11.03693871]
[1747595685628,3.96104003,2465.7,2465.6,1.12403871]
[1747595685832,8.96104003,2465.7,2465.6,10.22603871]
[1747595686732,8.96104003,2465.7,2465.6,1.12403871]
[1747595686934,8.96104003,2465.7,2465.6,10.18803871]
[1747595687432,0.81096,2465.4,2465.3,1.20670714]
[1747595687733,0.81096,2465.4,2465.3,10.58171091]
[1747595688136,3.86896,2465.4,2465.3,10.58171091]
[1747595688332,3.86896,2465.4,2465.3,10.27070714]
[1747595688932,3.86896,2465.4,2465.3,9.064]
[1747595689842,3.058,2465.4,2465.3,9.87499]
[1747595690139,3.86896,2465.4,2465.3,9.064]
[1747595692342,3.058,2465.4,2465.1,4.01884]
[1747595692538,1.7992,2465.3,2465.2,9.065]
[1747595693041,2.61019,2465.3,2465.2,9.065]
[1747595693241,5.66819,2465.3,2465.2,9.065]
[1747595694544,4.8572,2465.3,2465.2,9.87603]
[1747595694743,4.8572,2465.3,2465.2,11.69173]
[1747595695244,5.66819,2465.3,2465.2,24.35843285]
[1747595695442,5.66819,2465.3,2465.2,9.3760187]
[1747595696039,0.81103,2465.2,2465.1,3.2078]
[1747595696241,6.26573,2465.2,2465.1,12.2728]
[1747595697349,9.32373,2465.2,2465.1,12.2728]
[1747595699348,8.5127,2465.2,2465.1,13.08386]
[1747595699648,8.5127,2465.2,2465.1,26.25057415]
[1747595700246,9.32373,2465.2,2465.1,12.2728]
[1747595700454,0.81113,2464.9,2464.8,49.964]
[1747595700642,4.01893,2464.9,2464.8,49.964]
[1747595700950,4.01893,2464.9,2464.8,40.898]
[1747595701249,4.01893,2464.9,2464.8,49.964]
[1747595701638,7.07693,2464.9,2464.8,49.964]
[1747595705352,7.07693,2464.9,2464.8,49.965]
[1747595705548,7.16911003,2464.9,2464.8,49.965]
[1747595706153,3.15018003,2464.9,2464.8,63.94286415]
[1747595706752,3.058,2464.9,2464.8,64.2534622]
[1747595707148,0.81107,2465.1,2464.8,56.17823318]
[1747595707452,2.53568,2465.1,2464.9,9.87811]
[1747595707655,1.7808,2465.2,2465.1,0.81105]
[1747595707859,1.7246,2465.4,2465.3,0.81099]
[1747595708050,2.52278984,2465.5,2465.4,0.81096]
[1747595708354,3.33370984,2465.5,2465.4,1.7666]
[1747595708548,5.07310984,2465.5,2465.4,9.067]
[1747595709156,8.13110984,2465.5,2465.4,9.067]
[1747595709848,0.81102,2465.2,2465.1,9.067]
[1747595710253,8.86902,2465.2,2465.1,9.067]
[1747595710449,10.60842,2465.2,2465.1,9.067]
[1747595710852,0.81112,2464.9,2464.8,40.898]
[1747595711048,0.81112,2464.9,2464.8,49.965]
[1747595711250,0.81112,2464.9,2464.8,40.898]
[1747595711456,0.81119,2464.7,2464.5,10.27370714]
[1747595711656,2.55232,2464.6,2464.5,10.27370714]
[1747595711952,2.55232,2464.6,2464.5,10.9291]
[1747595712152,5.61032,2464.6,2464.5,10.9291]
[1747595712952,4.7991,2464.6,2464.2,3.2078]
[1747595713150,0.81135,2464.2,2464.1,1.20670714]
[1747595713949,2.55245,2464.2,2464.1,1.20670714]
[1747595714146,5.61045,2464.2,2464.1,1.20670714]
[1747595714961,0.81142,2464.0,2463.9,10.9291]
[1747595715157,6.2658,2464.0,2463.9,24.09581415]
[1747595715361,3.86942,2464.0,2463.9,24.09581415]
[1747595716355,3.058,2464.0,2463.9,24.09581415]
[1747595716557,3.058,2464.0,2463.9,24.90726415]
[1747595717565,3.86942,2464.0,2463.9,24.05781415]
[1747595718261,7.07722,2464.0,2463.9,9.029]
[1747595718450,6.2658,2464.0,2463.6,4.33404]
[1747595718655,3.86943,2464.0,2463.9,13.16671415]
[1747595719059,3.058,2464.0,2463.9,0.81145]
[1747595719255,3.058,2464.0,2463.9,13.97816415]
[1747595719456,3.058,2464.0,2463.9,19.28853545]
[1747595719662,3.058,2464.0,2463.9,23.96244808]
[1747595719860,0.66508984,2464.7,2464.6,0.81122]
[1747595720059,0.66508984,2464.7,2464.6,23.00793415]
[1747595720260,4.53427984,2464.7,2464.6,22.19671415]
[1747595720763,4.53427984,2464.7,2464.6,23.00793415]
[1747595720965,4.53427984,2464.7,2464.6,22.19671415]
[1747595721467,4.53427984,2464.7,2464.6,13.16671415]
[1747595721666,4.53427984,2464.7,2464.6,22.19671415]
[1747595721968,5.66089,2464.7,2464.6,22.19671415]
[1747595722464,5.66089,2464.7,2464.6,9.03]
[1747595722465,8.86869,2464.7,2464.6,9.03]
[1747595723767,0.81128,2464.4,2464.3,5.0704]
[1747595723973,0.81143,2464.0,2463.8,4.9597]
[1747595724271,0.81143,2464.0,2463.9,22.19571415]
[1747595724462,0.8114,2464.1,2463.9,22.19571415]
[1747595724663,0.8114,2464.1,2464.0,14.87601415]
[1747595724863,4.24404,2464.3,2464.0,15.68740415]
[1747595725067,1.7366,2464.3,2464.1,13.16671415]
[1747595725371,2.54792,2464.3,2464.2,1.7093]
[1747595725669,2.54792,2464.3,2464.2,14.87601415]
[1747595726168,3.86932,2464.3,2464.2,14.87601415]
[1747595726758,3.86932,2464.3,2464.2,13.16671415]
[1747595726957,0.81145,2463.9,2463.8,3.2078]
[1747595727166,0.81145,2463.9,2463.8,28.46251415]
[1747595727566,0.09218003,2464.0,2463.8,28.46251415]
[1747595727765,0.09218003,2464.0,2463.9,13.16671415]
[1747595727970,0.09218003,2464.0,2463.9,13.97816415]
[1747595728174,0.09218003,2464.0,2463.9,14.28880515]
[1747595728671,0.09218003,2464.0,2463.9,15.4132666]
[1747595729770,0.09218003,2464.0,2463.9,24.4432666]
[1747595731362,0.09218003,2464.0,2463.9,24.1326256]
[1747595731567,0.09218003,2464.0,2463.9,24.4433544]
[1747595731966,0.09218003,2464.0,2463.9,33.4553544]
[1747595732366,0.09218003,2464.0,2462.5,3.23784875]
[1747595732367,20.09998003,2464.0,2462.5,3.23784875]
[1747595732574,5.23766,2462.5,2461.6,8.09462187]
[1747595732770,0.81217,2461.7,2461.6,8.09462187]
[1747595732977,0.81231,2461.3,2461.2,0.15676681]
[1747595733162,13.03211,2461.3,2461.2,6.81e-06]
[1747595733368,0.81241,2461.0,2460.9,6.28666951]
[1747595733569,4.02021,2461.0,2460.9,6.28586951]
[1747595733872,0.81247,2460.8,2460.7,3.84419241]
[1747595734068,9.82847,2460.8,2460.7,3.84419241]
[1747595734265,14.82847,2460.8,2460.7,3.84419241]
[1747595734471,0.81257,2460.5,2460.4,5.4157399]
[1747595734773,9.02037,2460.5,2460.4,5.4157399]
[1747595735773,10.08301683,2460.5,2460.4,5.4157399]
[1747595736275,14.09801683,2460.5,2460.4,5.4157399]
[1747595736977,13.28544683,2460.5,2460.4,5.4157399]
[1747595737372,15.03634683,2460.5,2460.4,5.4157399]
[1747595737576,13.9737,2460.5,2460.4,5.4157399]
[1747595737775,12.2228,2460.5,2460.4,5.4157399]
[1747595738075,13.9737,2460.5,2460.4,5.4157399]
[1747595738281,14.78627,2460.5,2460.4,5.4157399]
[1747595738480,14.78627,2460.5,2460.1,9.037]
[1747595738682,11.57847,2460.5,2460.2,18.54847859]
[1747595738882,3.2078,2460.3,2460.2,18.54847859]
[1747595739173,3.2078,2460.3,2460.2,14.28654782]
[1747595739779,3.2078,2460.3,2460.2,27.58547859]
[1747595740179,3.2078,2460.3,2460.2,28.39814859]
[1747595740373,3.2078,2460.3,2460.2,27.58547859]
[1747595741081,4.02046,2460.3,2460.1,12.098]
[1747595741282,3.2078,2460.3,2460.1,30.64647859]
[1747595741476,3.2078,2460.3,2460.2,18.54847859]
[1747595742678,3.2078,2461.0,2460.2,19.28654782]
[1747595742881,0.81247,2460.8,2460.7,2.40724367]
[1747595743077,0.81254,2460.6,2460.5,23.32754782]
[1747595743277,3.2078,2460.8,2460.7,14.28654782]
[1747595743477,3.2078,2460.8,2460.7,11.87930415]
[1747595743684,3.2078,2460.8,2460.6,1.8007]
[1747595743887,10.853,2461.3,2460.7,20.34917859]
[1747595744077,0.8124,2461.1,2461.0,11.87930415]
[1747595744474,1.7753,2461.1,2461.0,11.87930415]
[1747595744779,9.83232,2461.3,2461.0,16.14123492]
[1747595744983,0.81234,2461.2,2461.1,20.28527859]
[1747595745180,2.52534,2461.2,2461.1,16.02334782]
[1747595745388,2.52534,2461.2,2461.1,13.61610415]
[1747595746891,3.2078,2461.4,2461.1,21.09762859]
[1747595747187,1.713,2461.5,2461.3,15.09884782]
[1747595747486,9.83221,2461.6,2461.4,1.7368]
[1747595747688,9.02,2461.6,2461.4,1.7368]
[1747595748190,9.83222,2461.6,2461.4,4.7948]
[1747595748689,0.81224,2461.5,2461.4,4.7948]
[1747595748886,2.55404,2461.5,2461.4,4.7948]
[1747595749194,2.55404,2461.5,2461.4,1.7368]
[1747595749386,1.7418,2461.5,2460.5,3.2078]
[1747595749580,4.06172,2461.2,2460.3,0.31387254]
[1747595749889,4.0204,2460.4,2460.3,0.31387254]
[1747595750189,12.2278,2460.4,2459.8,3.2078]
[1747595750389,2.55445,2460.3,2460.0,13.17833782]
[1747595750589,10.7618,2460.3,2460.1,1.7827]
[1747595750778,12.2278,2460.7,2460.2,13.17833782]
[1747595750978,0.81258,2460.5,2460.3,17.92393492]
[1747595751190,3.2078,2460.4,2460.3,13.66200415]
[1747595751482,4.0204,2460.4,2460.3,19.22296859]
[1747595752091,4.0204,2460.4,2460.3,22.28096859]
[1747595752390,0.8126,2460.4,2460.3,22.28096859]
[1747595753090,0.8126,2460.4,2460.3,25.48876859]
[1747595753296,4.0204,2460.4,2460.3,3.058]
[1747595753983,4.0204,2460.4,2460.3,20.49826859]
[1747595754182,4.0204,2460.4,2460.3,17.44026859]
[1747595754393,4.0204,2460.4,2460.3,16.14123492]
[1747595754586,0.81264,2460.3,2460.2,10.8465]
[1747595755893,3.2078,2460.4,2460.2,28.28676859]
[1747595756106,4.02042,2460.4,2460.3,19.26576859]
[1747595757287,4.02042,2460.4,2460.3,22.32376859]
[1747595759298,3.2078,2460.4,2460.3,25.53156859]
[1747595759498,0.07075767,2461.8,2460.3,14.14543077]
[1747595759696,3.35438675,2463.9,2462.6,14.23246859]
[1747595759993,3.35438675,2463.9,2461.1,5.14830097]
[1747595759994,0.08119189,2463.3,2463.0,2.3905]
[1747595760292,0.81181,2462.8,2462.7,3.2078]
[1747595760596,10.46701838,2462.8,2462.7,3.2078]
[1747595760803,14.65520838,2462.8,2462.4,3.2078]
[1747595760994,0.81188,2462.6,2462.5,3.2078]
[1747595761497,11.2654,2462.7,2462.5,5.56096444]
[1747595761693,0.08120838,2462.8,2462.6,1.8131]
[1747595761893,0.89303838,2462.8,2462.6,1.8131]
[1747595762195,0.81184,2462.7,2462.6,1.8131]
[1747595762692,2.50924,2462.7,2462.6,1.8131]
[1747595763200,2.50924,2462.7,2462.2,3.2078]
[1747595763201,8.72709,2462.7,2462.2,3.2078]
[1747595763394,0.81198,2462.3,2462.2,3.2078]
[1747595763698,10.37298,2462.3,2462.2,3.2078]
[1747595765500,10.37298,2462.3,2462.2,3.29998003]
[1747595765995,10.37298,2462.3,2461.6,9.543]
[1747595765996,0.81217,2461.7,2461.6,3.2078]
[1747595766395,0.81217,2461.7,2461.6,17.44026859]
[1747595766694,0.81217,2461.7,2461.6,3.2078]
[1747595766890,7.66137,2461.7,2461.6,3.2078]
[1747595767503,2.66137,2461.7,2461.6,3.2078]
[1747595768697,0.81217,2461.7,2461.6,17.44026859]
[1747595769600,0.81217,2461.7,2461.6,19.27996859]
[1747595770702,0.81217,2461.7,2461.6,5.0475]
[1747595771100,2.02913,2463.3,2462.0,15.08710415]
[1747595771295,0.81175,2463.0,2462.9,11.87930415]
[1747595771604,0.81175,2463.0,2462.9,1.8397]
[1747595771898,2.02945,2462.9,2462.4,3.2078]
[1747595772097,1.7582,2462.9,2462.6,1.29903367]
[1747595772294,0.81184,2462.7,2462.6,1.29903367]
[1747595772491,0.81186,2462.7,2462.6,1.29903367]
[1747595772706,0.81182,2462.8,2462.6,13.17833782]
[1747595772889,0.81182,2462.8,2462.7,4.9333]
[1747595773093,0.81182,2462.8,2462.7,18.11163782]
[1747595773394,4.95414134,2463.2,2462.7,18.11163782]
[1747595773593,0.81171,2463.1,2463.0,3.2078]
[1747595773797,0.81171,2463.1,2463.0,4.9333]
[1747595774199,0.81171,2463.1,2463.0,21.16963782]
[1747595775004,3.19594134,2463.2,2463.0,21.16963782]
[1747595775197,0.81168,2463.2,2463.1,13.17833782]
[1747595776401,0.81166,2463.3,2463.1,13.17833782]
[1747595776595,0.81163,2463.4,2463.3,13.17833782]
[1747595776797,0.81163,2463.4,2463.3,15.08710415]
[1747595777005,0.81163,2463.4,2463.3,16.38613782]
[1747595777206,0.81163,2463.4,2463.3,19.44413782]
[1747595779107,0.81159,2463.5,2463.3,19.44413782]
[1747595779299,0.81159,2463.5,2463.4,1.8438]
[1747595779501,0.81159,2463.5,2463.4,15.02213782]
[1747595780305,0.81159,2463.5,2463.4,18.08013782]
[1747595781511,0.81156,2463.6,2463.4,18.08013782]
[1747595781700,0.81156,2463.6,2463.5,11.87930415]
[1747595781901,0.81156,2463.6,2463.5,14.99563782]
[1747595782100,0.81156,2463.6,2463.5,18.05363782]
[1747595784210,0.81155,2463.6,2463.5,18.05363782]
[1747595785512,0.81155,2463.6,2463.5,6.17433367]
[1747595786511,0.81155,2463.6,2463.5,18.05363782]
[1747595787013,0.81154,2463.7,2463.5,18.05363782]
[1747595787212,0.81154,2463.7,2463.6,3.2078]
[1747595787405,0.81154,2463.7,2463.6,16.38613782]
[1747595789903,0.81151,2463.7,2463.6,16.38613782]
[1747595794915,0.81191,2462.5,2462.4,3.2078]
[1747595795210,0.81201,2462.2,2462.1,5.0706]
[1747595795401,2.02893,2463.6,2462.6,11.87930415]
[1747595795606,2.02896,2463.5,2462.7,3.6995]
[1747595795807,0.81181,2462.8,2462.7,1.8628]
[1747595796011,3.19895528,2462.8,2462.7,1.8628]
[1747595796712,4.91615528,2462.8,2462.7,1.8628]
[1747595797213,0.81198,2462.3,2462.2,3.2078]
[1747595797604,0.81198,2462.3,2462.2,15.08710415]
[1747595798014,0.81196,2462.4,2462.2,15.08710415]
[1747595798211,0.81186,2462.7,2462.6,11.87930415]
[1747595798413,0.81186,2462.7,2462.6,15.08710415]
[1747595798714,0.81186,2462.7,2462.6,3.2078]
[1747595798915,2.41407864,2462.7,2462.6,3.2078]
[1747595799616,2.41407864,2462.7,2462.6,5.022]
[1747595800218,2.41407864,2462.7,2462.6,1.8142]
[1747595800916,2.41407864,2462.7,2462.3,3.2078]
[1747595800917,0.81194,2462.4,2462.3,3.2078]
[1747595801211,0.81194,2462.4,2461.3,0.19443868]
[1747595801212,2.02999,2462.3,2461.9,3.2078]
[1747595801413,0.81208,2462.0,2461.9,3.2078]
[1747595802214,0.81224,2461.5,2461.4,1.8942]
[1747595802417,2.03053,2461.6,2461.2,4.41307424]
[1747595802722,0.81231,2461.3,2461.2,4.41307424]
[1747595803018,0.81231,2461.3,2461.2,3.2078]
[1747595803219,0.81231,2461.3,2461.2,13.89782415]
[1747595803816,0.81229,2461.4,2461.2,13.89782415]